Cogmind - Beta 16 @@@ ROGUE MODE // 2025.12.31 @ 03:57:54 Player: Legato Result: Destroyed by S-27 Virus with Autogun Performance ------------- Evolutions (3) 1500 Regions Visited (7) 1400 Robots Destroyed (54) 270 Value Destroyed (1122) 1122 Prototype IDs (6) 120 Alien Tech Used (0) 0 Bonus (0) 0 TOTAL SCORE: 4412 Bonus ------- None Cogmind --------- Core Integrity 0/700 Matter 245/300 Energy 100/100 System Corruption 6% Temperature Cool (0) Movement Core (50) Location -7/Factory Parts ------- > --- POWER (1) -------- (None) > --- PROPULSION (4) --- (None) > --- UTILITY (6) ------ Visual Processing Unit Improved Melee Analysis Suite Power Shielding > --- WEAPON (2) ------- Mining Claw > --- INVENTORY (5) ---- Improved Ion Engine Improved Deuterium Engine Improved Signal Interpreter Advanced Terrain Scan Processor Improved Shield Generator Peak State ------------ > --- POWER ------------ Cooled Ion Engine > --- PROPULSION ------- Aluminum Leg Aluminum Leg Aluminum Leg Improved Aluminum Leg > --- UTILITY ---------- Medium Storage Unit Visual Processing Unit Experimental Sensor Array Power Shielding Hardened Medium Armor Plating Improved Shield Generator > --- WEAPON ----------- Powered Hammer Powered Hammer > --- INVENTORY -------- Improved Ion Engine Improved Ion Engine Improved Sensor Array Improved Signal Interpreter Light Armor Plating Improved Assault Rifle Minigun Grenade Launcher Rocket Launcher [Rating: 38] Favorites ----------- Power Cooled Ion Engine Engine Cooled Ion Engine Propulsion Aluminum Leg Treads Improved Treads Leg Aluminum Leg Hover Unit Cooled Airjet Utility Small Storage Unit Device Seismic Detector Storage Small Storage Unit Processor Visual Processing Unit Hackware Hacking Suite Protection Power Shielding Weapon Improved Assault Rifle Energy Gun Beam Rifle Ballistic Gun Improved Assault Rifle Ballistic Cannon Light Cannon Launcher Rocket Launcher Impact Weapon Powered Hammer Slashing Weapon Katana Build | -11 -10 -9 -9 -8 -7 -7 -7 ------- Run | Yrd Mat Mat Min Mat Fac Was Fac Slots Evolved 6 | . . 2 . 2 2 . . Power . | . . . . . . . . Propulsion 2 | . . 1 . . 1 . . Utility 4 | . . 1 . 2 1 . . Weapon . | . . . . . . . . Parts Attached 54 | 7 5 18 5 9 3 1 6 Power 9 | 1 2 4 1 1 . . . Engine 9 | 1 2 4 1 1 . . . Core . | . . . . . . . . Reactor . | . . . . . . . . Propulsion 14 | 2 2 7 1 . . . 2 Treads 1 | . . . . . . . 1 Leg 12 | 2 2 7 1 . . . . Wheel . | . . . . . . . . Hover 1 | . . . . . . . 1 Flight . | . . . . . . . . Utility 16 | 2 1 2 2 4 3 . 2 Device 5 | 1 . 1 . 1 1 . 1 Storage 2 | 1 . . . 1 . . . Processor 5 | . 1 1 . 2 . . 1 Hackware 1 | . . . . . 1 . . Protection 3 | . . . 2 . 1 . . Artifact . | . . . . . . . . Weapon 15 | 2 . 5 1 4 . 1 2 Energy Gun 1 | . . 1 . . . . . Energy Cannon . | . . . . . . . . Ballistic Gun 5 | 2 . 3 . . . . . Ballistic Cannon 1 | . . 1 . . . . . Launcher 1 | . . . 1 . . . . Special Weapon . | . . . . . . . . Impact Weapon 5 | . . . . 4 . 1 . Slashing Weapon 2 | . . . . . . . 2 Piercing Weapon . | . . . . . . . . Special Melee Weapon . | . . . . . . . . Unidentified Prototypes 6 | . . 2 . 2 . 1 1 Parts Lost 11 | . . 3 1 . 1 3 3 Power 1 | . . 1 . . . . . Propulsion 4 | . . . . . 1 2 1 Utility 3 | . . . 1 . . 1 1 Weapon 3 | . . 2 . . . . 1 Highest Loss Streak 3 | . . 3 1 . 1 3 2 To Critical Strikes . | . . . . . . . . Average Backups 7 | 3 6 7 7 8 9 8 4 Power 1 | . 1 . 1 1 2 2 2 Propulsion 1 | 1 1 2 2 1 . . . Utility 3 | . 3 3 3 3 3 3 2 Weapon 1 | . 1 . . 2 4 2 . Tool/Special . | . . . . . . . . Unused Backups 15 | . 3 4 2 1 . 2 3 Power 2 | . . 1 . . . . 1 Propulsion 4 | . 2 1 . 1 . . . Utility 7 | . . 2 2 . . 1 2 Weapon 2 | . 1 . . . . 1 . Tool/Special . | . . . . . . . . Average Slot Usage (%) 84 | . 100 96 98 98 88 62 27 Engine 8 | . 14 11 10 9 7 4 . Leg 23 | . 28 30 33 27 24 14 . Device 9 | . 14 21 . 8 8 4 . Storage 8 | . 14 11 11 9 7 4 . Processor 6 | . . . 11 9 12 7 10 Protection 6 | . . . 9 16 9 12 7 Ballistic Gun 11 | . 28 16 12 4 . . . Launcher 2 | . . . 9 4 . . . Impact Weapon 2 | . . . . 8 15 5 . Peak Build Rating 38 | 7 8 19 19 30 38 36 16 Average Rating 16 | 5 7 13 16 26 32 22 9 On Entrance 16 | . 7 8 19 15 30 36 14 Avg Prop Armor Cover (%) . | . . . . . . . . Naked Turns . | . . . . . . . . Heaviest Build 38 | 13 15 22 23 30 38 31 5 Greatest Support 43 | 20 20 36 36 30 43 33 8 Greatest Overweight (x) 1 | 1 . . . . 1 1 1 Average Overweight (x) . | . . . . . . . . Largest Inventory Capacity 10 | 8 8 8 8 10 10 10 5 Average Capacity 7 | 6 8 8 8 9 10 8 5 Most Carried 10 | 6 8 8 8 10 10 10 5 Average Carried 7 | 3 7 7 7 8 9 8 4 Final Capacity 10 | 8 8 8 8 10 10 5 5 Final Carried 10 | 6 8 8 7 10 10 5 5 Class Distribution -------------------- 57% | Mutant 34% | Scavenger-Mutant 7% | Scavenger-Assassin Dominant Class ---------------- Mutant | -10/Materials Mutant | -9/Materials Scavenger-Mutant | -9/Mines Scavenger-Mutant | -8/Materials Scavenger-Assassin | -7/Factory Scavenger-Mutant | -7/Waste Mutant | -7/Factory Resources | -11 -10 -9 -9 -8 -7 -7 -7 ----------- Run | Yrd Mat Mat Min Mat Fac Was Fac Matter Collected 1344 | 268 246 454 160 70 59 . 87 Remotely . | . . . . . . . . Salvage Created 1732 | 88 343 786 213 70 219 . 13 Parts 99 | 6 21 42 16 3 9 . 2 Haulers Intercepted 3 | . . 1 . 1 1 . . Recyclers Shooed 6 | 1 3 1 1 . . . . Parts Field Recycled . | . . . . . . . . Retrieved Matter . | . . . . . . . . Parts Self-Destructed . | . . . . . . . . Prevented . | . . . . . . . . Parts Restored . | . . . . . . . . Kills | -11 -10 -9 -9 -8 -7 -7 -7 ------- Run | Yrd Mat Mat Min Mat Fac Was Fac Combat Hostiles Destroyed 36 | . 8 13 9 . 6 . . Melee 1 | . . . . . 1 . . Guns 24 | . 8 13 3 . . . . AOE 6 | . . . 6 . . . . Classes Destroyed 11 | 2 3 5 1 . . . . Worker 3 | . . 1 1 1 . . . Builder 1 | . . . 1 . . . . Tunneler 3 | 1 . . 1 . . . 1 Hauler 3 | . . 1 . 1 1 . . Recycler 5 | 1 1 3 . . . . . Operator 1 | . 1 . . . . . . Watcher 2 | . . 2 . . . . . Swarmer 17 | . 3 3 7 . 4 . . Grunt 15 | . 5 8 . . 2 . . Duelist 1 | . . 1 . . . . . Sentry 3 | . . 1 2 . . . . Best Kill Streak 6 | 1 6 4 5 1 4 . 1 Combat Bots Only 5 | . 5 3 5 . 4 . . Max Kills in Single Turn 4 | 1 2 1 4 1 1 . 1 Gunslinging 1 | . 1 . . . . . . Exploded 4 | . . . 4 . . . . Melee 1 | . . . . . 1 . . Uniques/NPCs Destroyed . | . . . . . . . . Combat | -11 -10 -9 -9 -8 -7 -7 -7 -------- Run | Yrd Mat Mat Min Mat Fac Was Fac Hostile Shots Fired 234 | . 30 79 40 . 18 3 64 Missed 74 | . 5 25 12 . 7 . 25 Hits 160 | . 25 54 28 . 11 3 39 Melee 6 | . . 3 . . . 3 . Projectile 154 | . 25 51 28 . 11 . 39 AOE 1 | . . . . . . . 1 Critical Strikes 5 | . . 1 . . . 1 3 Damage Taken 2459 | . 257 691 399 . 161 136 815 Core 970 | . 44 181 43 . 25 59 618 Absorbed by Shields 10 | . . . . . . . 10 Core Remaining (%) 81 | 100 82 . 44 100 . . . Volleys Fired 128 | 6 30 61 27 4 . . . Largest 2 | 2 2 2 2 1 . . . Hottest 76 | 40 40 76 56 33 . . . Shots Fired 220 | 12 60 105 39 4 . . . Gun 205 | 12 60 94 37 2 . . . Cannon 11 | . . 11 . . . . . Launcher 4 | . . . 2 2 . . . Special . | . . . . . . . . Kinetic 203 | 12 60 92 37 2 . . . Thermal 13 | . . 13 . . . . . Explosive 4 | . . . 2 2 . . . Electromagnetic . | . . . . . . . . Robot Hit Streak 13 | 4 13 9 10 2 . . . Robot Miss Streak 4 | 1 4 2 2 . . . . Penetration Max . | . . . . . . . . Secondary Targets 2 | . 1 . 1 . . . . Max Gunslinging Chain 1 | . 1 . 1 . . . . Shots Hit Robots 163 | 9 38 68 26 3 15 1 3 Core Hits 71 | 3 17 32 16 1 1 . 1 Critical Kills 1 | . 1 . . . . . . Critical Parts Destroyed 4 | 1 . 1 1 . 1 . . Critical Strikes 9 | 1 1 5 1 . 1 . . Burn 3 | . . 3 . . . . . Destroy 5 | 1 1 2 1 . . . . Smash 1 | . . . . . 1 . . Melee Attacks 36 | . . . . 5 21 1 9 Impact 27 | . . . . 5 21 1 . Slashing 9 | . . . . . . . 9 Piercing . | . . . . . . . . Sneak Attacks 5 | . . . . 1 1 . 3 Combat Hostiles . | . . . . . . . . Follow-up Attacks 3 | . . . . . 3 . . Damage Inflicted 3293 | 110 475 926 764 95 696 37 190 Guns 1781 | 110 471 782 387 31 . . . Cannons 144 | . . 144 . . . . . Explosions 346 | . . . 346 . . . . Melee 953 | . . . . 64 696 37 156 Ramming 69 | . 4 . 31 . . . 34 Kinetic 1766 | 110 471 767 387 31 . . . Thermal 159 | . . 159 . . . . . Explosive 346 | . . . 346 . . . . Electromagnetic . | . . . . . . . . Impact 797 | . . . . 64 696 37 . Slashing 156 | . . . . . . . 156 Piercing . | . . . . . . . . Highest Corruption 6 | . . . . . . 5 6 Average Corruption 5 | . . . . . . 5 5 Corruption Purged . | . . . . . . . . Corruption Blocked . | . . . . . . . . Effects 14 | . . . . . . 3 11 Message Errors 4 | . . . . . . . 4 Matter Fused 2 | . . . . . . 1 1 Energy Discharges 2 | . . . . . . . 2 Parts Fused 1 | . . . . . . 1 . Data Loss (minor) 3 | . . . . . . . 3 Alerts 2 | . . . . . . 1 1 Overload Shots . | . . . . . . . . Overflow Damage 330 | . . . . 49 172 . 109 Projectiles . | . . . . . . . . Explosions . | . . . . . . . . Melee 330 | . . . . 49 172 . 109 Knockbacks 3 | . 1 . . . 2 . . Impact 3 | . 1 . . . 2 . . Kinetic . | . . . . . . . . Secondary . | . . . . . . . . Self-Inflicted Damage 64 | . . . 45 . . . 19 Shots 1 | . . . 1 . . . . Rammed 9 | . . . . . . . 9 Targets Rammed 17 | . 1 . 7 . . . 9 Kicked 8 | . 1 . 7 . . . . Crushed . | . . . . . . . . Highest Temperature 119 | . 5 119 4 . . . 11 Average Temperature 26 | . 5 32 2 . . . 11 Received Heat Transfer 669 | . 114 258 72 . 27 . 198 Siege Activations . | . . . . . . . . Martial Activations . | . . . . . . . . Shielding Activations . | . . . . . . . . Robots Disrupted . | . . . . . . . . Combat Hostiles . | . . . . . . . . Robots Corrupted 5 | . . . . . 5 . . Combat Hostiles 5 | . . . . . 5 . . Parts Fried 5 | . . . . . 5 . . Impact Corruptions 9 | . . . . 1 8 . . Robots Melted . | . . . . . . . . Combat Hostiles . | . . . . . . . . Parts Melted 2 | . . 2 . . . . . Heat Transferred 629 | . . 629 . . . . . Parts Sabotaged . | . . . . . . . . Parts Stolen . | . . . . . . . . Parts Stripped . | . . . . . . . . Power Chain Reactions . | . . . . . . . . Alert | -11 -10 -9 -9 -8 -7 -7 -7 ------- Run | Yrd Mat Mat Min Mat Fac Was Fac Maximum Alert Level 1 | . . . . . . . 1 Low Security (%) 99 | 100 100 100 100 100 100 100 99 Level 1 . | . . . . . . . . Level 2 . | . . . . . . . . Level 3 . | . . . . . . . . Level 4 . | . . . . . . . . Level 5 . | . . . . . . . . High Security . | . . . . . . . . Max Security . | . . . . . . . . Peak Influence 204 | 5 147 176 139 52 115 33 204 Initial 51 | . . 51 48 16 3 33 . Average 51 | 2 31 102 73 13 19 12 45 Influence Increases 1421 | 10 206 389 234 78 183 . 321 Destroy 0b10 Robot/C 720 | . 160 260 180 . 120 . . Destroy 0b10 Robot/NC 90 | 10 10 35 15 10 5 . 5 Destroy Leader 120 | . 30 56 20 2 12 . . Successful Hack 31 | . 6 6 . 8 . . 11 Disable Machine 60 | . . 30 . 30 . . . Destroy Structure 55 | . . 2 19 28 1 . 5 Lose Combat Pursuer 345 | . . . . . 45 . 300 Influence Decreases 1225 | 10 83 388 316 112 95 96 125 Entered New Map 242 | . . 72 76 26 5 63 . Time Decay 918 | 10 83 286 230 86 80 30 113 Lost Part 65 | . . 30 10 . 10 3 12 Squads Dispatched 7 | . 3 1 . . . . 3 Investigation 2 | . 1 1 . . . . . Extermination 1 | . . . . . . . 1 Reinforcement 4 | . 2 . . . . . 2 Assault . | . . . . . . . . Garrison . | . . . . . . . . Intercept . | . . . . . . . . Searches Triggered . | . . . . . . . . Construction Impeded . | . . . . . . . . Haulers Reinforced . | . . . . . . . . Active Scanning Responses . | . . . . . . . . Cargo Convoy Interrupts . | . . . . . . . . Stealth | -11 -10 -9 -9 -8 -7 -7 -7 --------- Run | Yrd Mat Mat Min Mat Fac Was Fac Distress Signals 4 | . . 1 2 . . . 1 Communications Jammed . | . . . . . . . . Distress Signals . | . . . . . . . . Times Spotted 89 | . 11 25 7 . 9 6 31 Peak Tracking Total 10 | . 5 4 5 . 4 6 10 Tactical Retreats 13 | . . 4 . . 1 . 8 ECM-based Alert Blocks 5 | . . 5 . . . . . Traps | -11 -10 -9 -9 -8 -7 -7 -7 ------- Run | Yrd Mat Mat Min Mat Fac Was Fac Traps Triggered 4 | . 1 1 . . 1 . 1 Indirectly . | . . . . . . . . Trap Hack Attempts . | . . . . . . . . Triggered . | . . . . . . . . Disarmed . | . . . . . . . . Reprogrammed . | . . . . . . . . Reused . | . . . . . . . . Traps Extracted . | . . . . . . . . Installed . | . . . . . . . . Triggered . | . . . . . . . . Machines | -11 -10 -9 -9 -8 -7 -7 -7 ---------- Run | Yrd Mat Mat Min Mat Fac Was Fac Machines Disabled 4 | . . 2 . 2 . . . Max in Single Turn 1 | . . 1 . 1 . . . Machines Repaired . | . . . . . . . . Machines Dismantled . | . . . . . . . . Machines Sabotaged . | . . . . . . . . Overloaded Fab Kills . | . . . . . . . . Hacking | -11 -10 -9 -9 -8 -7 -7 -7 --------- Run | Yrd Mat Mat Min Mat Fac Was Fac Machines Accessed 9 | . 1 4 . 1 1 . 2 Terminals 6 | . 1 2 . 1 . . 2 Fabricators . | . . . . . . . . Repair Stations . | . . . . . . . . Recycling Units 1 | . . 1 . . . . . Scanalyzers 2 | . . 1 . . 1 . . Garrison Access . | . . . . . . . . Total Hacks 28 | . 2 15 . 5 3 . 3 Successful 17 | . 1 10 . 2 1 . 3 Failed 11 | . 1 5 . 3 2 . . Catastrophic 4 | . 1 1 . 2 . . . Database Lockouts . | . . . . . . . . Manual 11 | . 2 4 . 4 . . 1 Terminals 14 | . 2 4 . 5 . . 3 Fabricators . | . . . . . . . . Repair Stations . | . . . . . . . . Recycling Units 2 | . . 2 . . . . . Scanalyzers 12 | . . 9 . . 3 . . Garrison Access . | . . . . . . . . Terminal Hacks 7 | . 1 1 . 2 . . 3 Open DSF 1 | . . . . . . . 1 Branch Access Points 2 | . . . . 1 . . 1 Locate Traps 1 | . . . . 1 . . . Zone Layout 3 | . 1 1 . . . . 1 Fabricator Hacks . | . . . . . . . . Repair Station Hacks . | . . . . . . . . Recycling Unit Hacks 2 | . . 2 . . . . . Report Inventory 1 | . . 1 . . . . . Retrieve Components 1 | . . 1 . . . . . Scanalyzer 8 | . . 7 . . 1 . . Insert Component 2 | . . 2 . . . . . Analyze 2 | . . 2 . . . . . Retrieve Study 4 | . . 3 . . 1 . . Garrison Access Hacks . | . . . . . . . . Unauthorized Hacks . | . . . . . . . . Terminals . | . . . . . . . . Fabricators . | . . . . . . . . Repair Stations . | . . . . . . . . Recycling Units . | . . . . . . . . Scanalyzers . | . . . . . . . . Garrison Access . | . . . . . . . . Data Cores Recovered . | . . . . . . . . Used . | . . . . . . . . Hacking Detections 6 | . 1 3 . 1 1 . . Full Trace Events 1 | . . 1 . . . . . Feedback Events . | . . . . . . . . Feedback Blocked . | . . . . . . . . Robot Schematics Acquired . | . . . . . . . . Robots Built . | . . . . . . . . Authchips . | . . . . . . . . Time . | . . . . . . . . Total Robot Build Rating . | . . . . . . . . Part Schematics Acquired 2 | . . 2 . . . . . Parts Built . | . . . . . . . . Authchips . | . . . . . . . . Time . | . . . . . . . . Total Part Build Rating . | . . . . . . . . Part Studies Acquired 4 | . . 3 . . 1 . . Parts Repaired . | . . . . . . . . Time . | . . . . . . . . Parts Recycled . | . . . . . . . . Recycled Matter . | . . . . . . . . Retrieved Matter . | . . . . . . . . Retrieved Components 9 | . . 9 . . . . . Parts Scanalyzed 2 | . . 2 . . . . . Part Schematics Acquired 2 | . . 2 . . . . . Parts Damaged . | . . . . . . . . Bothacking | -11 -10 -9 -9 -8 -7 -7 -7 ------------ Run | Yrd Mat Mat Min Mat Fac Was Fac Used RIF Installer . | . . . . . . . . Robots Hacked . | . . . . . . . . Non-combat . | . . . . . . . . Combat . | . . . . . . . . Robot Hacks Applied . | . . . . . . . . Relay Couplers Released . | . . . . . . . . Fabnet Peak Effective % . | . . . . . . . . Robots Rewired . | . . . . . . . . Allies Hacked . | . . . . . . . . Hacks Repelled . | . . . . . . . . Allies | -11 -10 -9 -9 -8 -7 -7 -7 -------- Run | Yrd Mat Mat Min Mat Fac Was Fac Total Allies . | . . . . . . . . Largest Group . | . . . . . . . . Highest-Rated Group . | . . . . . . . . Highest-Rated Ally . | . . . . . . . . Total Orders . | . . . . . . . . Ally Attacks . | . . . . . . . . Total Damage . | . . . . . . . . Kills . | . . . . . . . . Allies Corrupted . | . . . . . . . . Allies Melted . | . . . . . . . . Intel | -11 -10 -9 -9 -8 -7 -7 -7 ------- Run | Yrd Mat Mat Min Mat Fac Was Fac Active Infowar (turns) 2594 | 15 471 624 499 317 304 110 254 Optics 1492 | . . 8 499 317 304 110 254 Sensors 683 | . . . . 314 302 67 . Seismic 1133 | 15 470 624 24 . . . . T.N.C. 27 | . 1 . . 26 . . . ECM 384 | . . 384 . . . . . Robot Analysis Total . | . . . . . . . . Derelict Logs Recovered 1 | . . . 1 . . . . Drone Launches . | . . . . . . . . Drone Recoveries . | . . . . . . . . Exploration | -11 -10 -9 -9 -8 -7 -7 -7 ------------- Run | Yrd Mat Mat Min Mat Fac Was Fac Turns Passed 2866 | 83 471 624 499 317 304 110 458 Spaces Moved 2296 | 44 271 343 372 243 196 121 706 Core 586 | 6 . . . . . 68 512 Treads . | . . . . . . . . Legs 1516 | 38 271 343 372 243 196 53 . Wheels . | . . . . . . . . Hover 194 | . . . . . . . 194 Flight . | . . . . . . . . Fastest Speed 50 | 50 120 105 105 105 105 50 50 Average Speed 91 | 112 120 113 105 105 109 78 53 Slowest Speed 175 | 120 120 120 105 105 175 175 100 Overloaded Moves . | . . . . . . . . Propulsion Burnouts . | . . . . . . . . Robots Hopped . | . . . . . . . . Potential Cave-ins . | . . . . . . . . Cave-ins Triggered . | . . . . . . . . Exploration Rate (%) 35 | 3 39 29 70 26 4 91 24 Regions Visited 7 Branch Regions 1 Pre-discovered Areas 1 | . . . 1 . . . . Known Exits Taken 1 | . . . . 1 . . . Unknown Exits Taken 4 | 1 1 1 1 . . . . Scrap Searched 3 | . . . 3 . . . . Spaces Dug 9 | . . . . 2 1 . 6 Terrain Destroyed 57 | . . . 22 28 1 . 6 Melee 9 | . . . . 2 1 . 6 Projectile . | . . . . . . . . AOE 48 | . . . 22 26 . . . Terrain Rammed 1 | . . . . . . . 1 Walls Destroyed . | . . . . . . . . Machines Disabled . | . . . . . . . . Actions | -11 -10 -9 -9 -8 -7 -7 -7 --------- Run | Yrd Mat Mat Min Mat Fac Was Fac Total 2807 | 62 359 482 442 295 257 135 775 Wait 194 | . 40 35 19 19 37 9 35 Move 2290 | 43 270 342 371 242 196 120 706 Hop . | . . . . . . . . Pick Up 30 | 6 5 8 4 5 . . 2 Fast Attach 31 | 7 . 7 4 3 3 1 6 Attach 12 | . . 4 1 3 2 1 1 Detach 8 | . . . . 4 2 1 1 Swap 22 | . 6 9 1 6 . . . Drop 44 | . 7 16 8 5 1 2 5 Fire 128 | 6 30 61 27 4 . . . Melee 30 | . . . . 4 16 1 9 Ram 10 | . . . . . . . 10 Kick 8 | . 1 . 7 . . . . Crush . | . . . . . . . . Escape Stasis . | . . . . . . . . Rewire . | . . . . . . . . Trap . | . . . . . . . . Miscellaneous . | . . . . . . . . Route ------- -11/Scrapyard -10/Materials -9/Materials -9/Mines -8/Materials -7/Factory -7/Waste -7/Factory (discovered 5 exits: [*Fac] / Sto x2 / Low x2) History --------- Turn | Location | Event 11 | -11/Scrapyard | Discovered new exit (range 15) 84 | -11/Scrapyard | Entered Materials 311 | -10/Materials | Build established: Mutant 511 | -10/Materials | Discovered new exit (range 12) 555 | -10/Materials | Entered another Materials area 555 | -9/Materials | Evolved 2 slots: Propulsion x1, Utility x1 691 | -9/Materials | Lost 3 parts (1p2w) 1063 | -9/Materials | Discovered new exit (range 7) 1179 | -9/Materials | Entered Mines 1219 | -9/Mines | Core integrity fell below 50% 1317 | -9/Mines | Found DCF Scrap (15 items) 1559 | -9/Mines | Learned Materials emergency access door positions 1664 | -9/Mines | Discovered new exit (range 10) 1666 | -9/Mines | Learned location of Storage (-7) 1666 | -9/Mines | Found a damaged Exp. Sensor Array with a note attached 1668 | -9/Mines | Found Prototype Device 1678 | -9/Mines | Entered Materials 1678 | -8/Materials | Evolved 2 slots: Utility x2 1681 | -8/Materials | Identified Exp. Sensor Array 1868 | -8/Materials | Build established: Scavenger-Mutant 1987 | -8/Materials | Discovered new exit (range 3) 1994 | -8/Materials | Identified exit to Factory 1995 | -8/Materials | Entered Factory 1995 | -7/Factory | Evolved 2 slots: Propulsion x1, Utility x1 2299 | -7/Factory | Sucked down chute 2299 | -7/Factory | Entered Waste 2314 | -7/Waste | EMP discharged 2328 | -7/Waste | Spotted C-40 Crusher 2329 | -7/Waste | Spotted C-40 Crusher 2332 | -7/Waste | Spotted C-40 Crusher 2334 | -7/Waste | Spotted C-40 Crusher 2359 | -7/Waste | Spotted C-40 Crusher 2360 | -7/Waste | Crushed by Compactor (1 part destroyed, 1 dropped) 2362 | -7/Waste | Spotted C-40 Crusher 2366 | -7/Waste | Crushed by Compactor (1 part destroyed, 2 dropped) 2369 | -7/Waste | Crushed by Compactor (1 part destroyed, 2 dropped) 2395 | -7/Waste | Discovered new exit (range 12) 2400 | -7/Waste | Lost 3 parts (2n1u) 2409 | -7/Waste | Entered Factory 2423 | -7/Factory | Identified exit to DSF 2453 | -7/Factory | Discovered new exit (range 7) 2519 | -7/Factory | Allied Derelicts emerged from ambush trap array 2544 | -7/Factory | Identified exit to Storage 2544 | -7/Factory | Identified exit to Lower Caves 2673 | -7/Factory | Build established: Mutant 2766 | -7/Factory | Core integrity fell below 50% 2850 | -7/Factory | Core integrity fell below 20% 2867 | -7/Factory | Destroyed by S-27 Virus with Autogun Last Messages --------------- 02778_ ALERT: Potential suspicious activity detected, Programmers report to Factory Zone 1V. 02786_ System corrupted: Energy discharge (-28). 02806_ Cld. Airjet destroyed. 02808_ Critical hit (Burn: +37). 02809_ K-01 Serf cleans the Neutrino Reactor. 02814_ K-01 Serf cleans the Garrison Access. 02833_ C-30 ARC bursts open, deploying its payload. 02833_ S-27 Virus unfolds itself. 02837_ :BE3SRQ0 02858_ Acquired Mining Claw. 02861_ K-01 Serf cleans the Power Conduit. 02863_ R-06 Scavenger destroyed. 02863_ K-01 Serf collects debris. 02864_ Sneak attack on K-01 Serf. 02864_ K-01 Serf Lgt. Ion Engine ripped off. 02866_ K-01 Serf collects debris. Map ----- +----------------------------------------------------+ | ?????????????????????????????????????????????????? | | ?????????????????????????????????????????????????? | | ????????????????????????????????? ?????????????? | | ????????????????????????????#?"""""""""? #???????? | | ????????????????????????????# #???????? | | ????????????????????????????# """"""""" #???????? | | ????????????????????????????# #???????? | | ????????????????????????????# """"""""" #???????? | | ????????????????????????????# #???????" | | ????????????????????????????# """"""""" #???????" | | ????????????????????????????# #??????? | | ??????????????????????????#########+#############+ | | ??????????????????>???????# | | ??????????????????????????# | | ??????????????????????????# | | ??????????????????????????# """"""""" | | ??????????????????????????# | | ??????????????????????????# """"""""" | | ??????????????????????????# | | ??????????????????????????# == #### | | ??????????????????????????# =!*== #??? | | ??????????????????????????# !ss=r #??? | | ??????????????????????????# /!!! #??? | | ??????????????????????????# /!k #??? | | ??????????????#############s ####+##########??? | | ?????????? / tr@ #??? ??????????? | | ?????????? #???? ?????????? | | ???????????" k #????? """???????? | | ???????????" """ #??????"""???????? | | ??????????????"" #???????"????????? | | ??????????????R" #????????????????? | | ??????????????"" ##########+####????????????????? | | ??????????????" ????????????????????????????????? | | ????????????? ?????????????????????????????????? | | ????????????? ???????????????????????????????????? | | ?????????????????????????????????????????????????? | | ?????????????????????????????????????????????????? | | ?????????????????????????????????????????????????? | | ?????????????????????????????????????????????????? | | ?????????????????????????????????????????????????? | | ?????????????????????????????????????????????????? | | ?????????????????????????????????????????????????? | | ?????????????????????????????????????????????????? | | ?????????????????????????????????????????????????? | | ?????????????????????????????????????????????????? | | ?????????????????????????????????????????????????? | | | | | | | | | +----------------------------------------------------+ Best States ------------- Heat Dissipation 34 Energy Generation 23 Energy Capacity 280 Matter Stores 300 Matter Capacity 300 Sight Range 18 Robot Scan Range 20 Terrain Scan Density 10 ECM Strength 1 Armor Coverage 225 Power Shielding 33 Evasion (%) 55 Melee Accuracy 6 Offensive Hacking 10 Item Schematics ----------------- Imp. Aluminum Leg | -9/Materials | Scanalyzed Signal Interpreter | -9/Materials | Scanalyzed Robot Schematics ------------------ None Fabricated ------------ Nothing Repaired ---------- Nothing Studied --------- Imp. Ion Engine | -9/Materials | Hacked Imp. Aluminum Leg | -9/Materials | Hacked Aluminum Leg | -9/Materials | Hacked Powered Hammer | -7/Factory | Hacked Alien Tech Used ----------------- None Achievements -------------- Item+ Challenges ------------ None Game ------ Seed PlexusCoordinationSpiker Manual? 0 Play Time 00:59:09 Cumulative 25.2 hours Start 2025.12.31 @ 02:40:34 End 2025.12.31 @ 03:57:54 Sessions 1 Manual Loads 0 Difficulty Rogue Special Mode None Game No. 32 Rogue 32 Adventurer 0 Explorer 0 Win Type - Total 0 Types 0/0/0/0/0/0/0/0/0/0 Lore% 16 Gallery% 29 Achievement% 19 Wizard Run 0 Options --------- Layout 0 ASCII 1 Keyboard 0 Movement Arrows Keybinds 1 Fullscreen 1 Font 18/X11 Map View 76x50 Zoom Use 0% Tactical HUD 1 Map Filters NONE Filters NONE Steam 1 RUN: 240c53af-6e66-4e74-98a6-2415d6b14fe3